{"text_format":"1","workbook":"xlsx","n_sheets":1,"sheets":["Scoring Methodology"],"not_rendered":{"charts":0,"images":0,"macros":1,"external_links":0,"defined_names":0,"comments":0,"pivot_tables":0},"unopened":[],"bounds":{"document_bytes":16777216,"sheet_cells":100000,"rows_first":2000,"rows_last":500,"rows_between":2000,"halvings":0,"cell_chars":16384,"cell_head_chars":4096},"cells_cut":0,"cells_raw":0,"read":"whole","date_system":"1900"}

{"sheet":"Scoring Methodology","index":0,"n_rows":33,"n_cols":21,"rows_kept":33,"cut":false,"hidden":false,"merged":[]}
["Document No. 05b - Icatibant and C1 Esterase - Scoring Methodology",null,null,null,null,null,null,null,null,null,"OFFICIAL - SENSITIVE COMMERCIAL"]
[]
["Framework Reference: ","CM/PHS/15/5500"]
["Framework Title: ","NHS National Framework Agreement for the supply of Icatibant and C1 Esterase products"]
["Framework Timeframe: ","1st July 2018 to 30th June 2019 with options to extend up to a further 36 months. The total maximum framework period including any extensions will be no more than 48 months"]
[]
["Question  ","Weighting","TAB Reference \nDoc. No 5a","Question Type","Score","Question Type / Maximum Score","Maximum Weighted Score","Response \n0 Marks","Response  \n1 Mark","Response   \n2 Marks","Response   \n3 Marks","Response   \n4 Marks","Response   \n5 Marks","Response   \n6 Marks","Response   \n7 Marks","Response   \n8 Marks","Response   \n9 Marks","Response  \n10 Marks",null,"Question Score as % of Total Tender"]
["Eligibility","n/a"]
["Technical merit/safety",null,"Mandatory Requirements","Pass / Fail",null,"Pass","n/a","Fail","Pass",null,null,null,null,null,null,null,null,null,null,{"$f":"E9","v":0},0]
["Terms and conditions",null,"Mandatory Requirements","Pass / Fail",null,"Pass","n/a","Fail","Pass",null,null,null,null,null,null,null,null,null,null,{"$f":"E10","v":0},0]
["Service levels",null,"Mandatory Requirements","Pass / Fail",null,"Pass","n/a","Fail","Pass",null,null,null,null,null,null,null,null,null,null,{"$f":"E11","v":0},0]
["Price",0.7,null,null,null,null,null,null,null,null,null,null,null,null,null,null,null,null,null,{"$f":"SUM(T13:T16)","v":0}]
["25Kg patient",null,"Price","Scored",null,10,{"$f":"F13/40*70","v":17.5},"No bid","40.0001% or higher than lowest offer price","35.0001% higher and equal to/less than 40% higher","30.0001% higher and equal to/less than 35% higher","25.0001% higher and equal to/less than 30% higher","20.0001% higher and equal to/less than 25% higher","15.0001% higher and equal to/less than 20% higher","10.0001% higher and equal to/less than 15% higher","5.0001% higher and equal to/less than 10% higher","0.0001% higher and equal to/less than 5% higher","lowest price",null,{"$f":"(E13/40)*70","v":0},0]
["40Kg patient",null,"Price","Scored",null,10,{"$f":"F14/40*70","v":17.5},"No bid","40.0001% or higher than lowest offer price","35.0001% higher and equal to/less than 40% higher","30.0001% higher and equal to/less than 35% higher","25.0001% higher and equal to/less than 30% higher","20.0001% higher and equal to/less than 25% higher","15.0001% higher and equal to/less than 20% higher","10.0001% higher and equal to/less than 15% higher","5.0001% higher and equal to/less than 10% higher","0.0001% higher and equal to/less than 5% higher","lowest price",null,{"$f":"(E14/40)*70","v":0},0]
["70Kg patient",null,"Price","Scored",null,10,{"$f":"F15/40*70","v":17.5},"No bid","40.0001% or higher than lowest offer price","35.0001% higher and equal to/less than 40% higher","30.0001% higher and equal to/less than 35% higher","25.0001% higher and equal to/less than 30% higher","20.0001% higher and equal to/less than 25% higher","15.0001% higher and equal to/less than 20% higher","10.0001% higher and equal to/less than 15% higher","5.0001% higher and equal to/less than 10% higher","0.0001% higher and equal to/less than 5% higher","lowest price",null,{"$f":"(E15/40)*70","v":0},0]
["100Kg patient",null,"Price","Scored",null,10,{"$f":"F16/40*70","v":17.5},"No bid","40.0001% or higher than lowest offer price","35.0001% higher and equal to/less than 40% higher","30.0001% higher and equal to/less than 35% higher","25.0001% higher and equal to/less than 30% higher","20.0001% higher and equal to/less than 25% higher","15.0001% higher and equal to/less than 20% higher","10.0001% higher and equal to/less than 15% higher","5.0001% higher and equal to/less than 10% higher","0.0001% higher and equal to/less than 5% higher","lowest price",null,{"$f":"(E16/40)*70","v":0},0]
["Security of Supply",0.2,null,null,null,null,null,null,null,null,null,null,null,null,null,null,null,null,null,{"$f":"SUM(T18:T22)","v":0}]
["Minimum annual volume of product available \n(% of total market)",null,"Product Information","Scored",null,10,{"$f":"F18/50*20","v":4},null,"<20%","20.1 to 30% ","30.1 to 40%","40.1 to 50%","50.1 to 60%","60.1 to 80%","80.1 to 100","100.1 to 105%","105.1 to 110%",">110%",null,{"$f":"(E18/50)*20","v":0},0]
["Drug substance manufacture\npreparation of substances to be used in the manufacture of the final drug",null,"Product Information","Scored",null,10,{"$f":"F19/50*20","v":4},null,"One facility at one geographic location",null,"One geographic location with two or more facilities",null,null,null,"Two geographic locations with facilities",null,null,"Multiple geographic locations with facilities",null,{"$f":"(E19/50)*20","v":0},0]
["Production of drug\nthe manufacture of the final drug",null,"Product Information","Scored",null,10,{"$f":"F20/50*20","v":4},null,"One facility at one geographic location",null,"One geographic location with two or more facilities",null,null,null,"Two geographic locations with facilities",null,null,"Multiple geographic locations with facilities",null,{"$f":"(E20/50)*20","v":0},0]
["Packaging and labelling\nenclosing and labelling products for distribution, storage, sale and safe use",null,"Product Information","Scored",null,10,4,null,"One facility at one geographic location",null,"One geographic location with two or more facilities",null,null,null,"Two geographic locations with facilities",null,null,"Multiple geographic locations with facilities",null,0,0]
["Stock holding facility / warehouse \nfacility for storing finished product which is ready for distribution to end user",null,"Product Information","Scored",null,10,4,null,"One facility at one geographic location",null,"One geographic location with two or more facilities",null,null,null,"Two geographic locations with facilities",null,null,"Multiple geographic locations with facilities",null,0,0]
["Ease of Use",0.1,null,null,null,null,null,null,null,null,null,null,null,null,null,null,null,null,null,{"$f":"SUM(T24:T27)","v":0}]
["Liciensed age",null,"Product Information","Scored",null,5,{"$f":"F24/35*10","v":1.4285714285714284},null,null,"Adults ",null,null,"Adults and adolescents or children",null,null,null,null,null,null,{"$f":"(E24/35)*10","v":0},0]
["Product licensed for self-admin",null,"Product Information","Scored",null,10,{"$f":"F25/35*10","v":2.8571428571428568},"No",null,null,null,null,null,null,null,null,null,"Yes",null,{"$f":"(E25/35)*10","v":0},0]
["Plasma Derived or Recombinant ",null,"Product Information","Scored",null,10,{"$f":"F26/35*10","v":2.8571428571428568},null,null,null,null,null,"Plasma Derived",null,null,null,null,"Recombinant",null,0]
["Number of different vial / syringe sizes available ",null,"Product Information","Scored",null,10,2.8571428571428568,null,1,null,null,null,2,null,null,null,null,"> 3",null,0,0]
[null,null,null,"Scored",8,2,0.35,null,null,null,null,null,null,null,null,null,null,null,null,{"$f":"(E28/29)*5","v":1.3793103448275863}]
[null,null,null,"Scored",null,1,0.17,null,null,null,null,null,null,null,null,null,null,null,null,0]
[null,null,null,"Scored",null,8,1.38,null,null,null,null,null,null,null,null,null,null,null,null,0]
[null,null,null,"Scored",null,10,1.72,null,null,null,null,null,null,null,null,null,null,null,null,0]
[null,null,null,"Scored",null,4,0.69,null,null,null,null,null,null,null,null,null,null,null,null,0]
["Total",{"$f":"B23+B17+B12","v":1},null,null,null,null,null,null,null,null,null,null,null,null,null,null,null,"Total Score",null,{"$f":"T23+T17+T12","v":0}]